bitfinex/quotes_BTCUSD_20240611
["timestamp","ask_amount","ask_price","bid_price","bid_amount"]
[1718112617777,0.00440231,67194.0,67193.0,0.006]
[1718112617988,0.14872224,67194.0,67193.0,0.006]
[1718112618886,0.00440231,67188.0,67187.0,0.000946]
[1718112619105,0.00440231,67190.0,67187.0,0.000946]
[1718112619532,0.00440231,67188.0,67187.0,0.000946]
[1718112619966,0.00440231,67191.0,67187.0,0.000946]
[1718112620197,0.00440231,67190.0,67187.0,0.000946]
[1718112620427,0.14431993,67191.0,67187.0,0.000946]
[1718112620808,0.14872224,67191.0,67187.0,0.000946]
[1718112621008,0.14431993,67191.0,67187.0,0.000946]
[1718112621557,0.14872224,67190.0,67187.0,0.000946]
[1718112621808,0.18500231,67188.0,67187.0,0.000946]
[1718112622020,0.32932224,67188.0,67187.0,0.008946]
[1718112622232,0.47815824,67188.0,67187.0,0.008946]
[1718112622484,0.29755824,67188.0,67187.0,0.002946]
[1718112622738,0.29755824,67188.0,67187.0,0.000946]
[1718112623004,0.29755824,67188.0,67187.0,0.008946]
[1718112623274,0.39685824,67188.0,67187.0,0.002946]
[1718112623514,0.62946406,67188.0,67187.0,0.001946]
[1718112623957,0.44386406,67188.0,67187.0,0.000946]
[1718112624175,0.60446406,67188.0,67187.0,0.000946]
[1718112624405,0.55745824,67188.0,67187.0,0.000946]
[1718112624839,0.55745824,67188.0,67187.0,0.002946]
[1718112625318,0.58245824,67188.0,67187.0,0.002946]
[1718112625555,0.56245824,67188.0,67187.0,0.000946]
[1718112625761,0.57745824,67188.0,67187.0,0.000946]
[1718112625997,0.58245824,67188.0,67187.0,0.001946]
[1718112626412,0.57745824,67188.0,67187.0,0.000946]
[1718112626649,0.57745824,67188.0,67187.0,0.001946]
[1718112626650,0.58245824,67188.0,67187.0,0.001946]
[1718112627070,0.57745824,67188.0,67187.0,0.000946]
[1718112627276,0.64952649,67188.0,67187.0,0.000946]
[1718112627835,0.65452649,67188.0,67187.0,0.001946]
[1718112628048,0.58245824,67188.0,67187.0,0.001946]
[1718112629290,0.57745824,67188.0,67187.0,0.000946]
[1718112629692,0.58245824,67188.0,67187.0,0.001946]
[1718112629865,0.57745824,67188.0,67187.0,0.000946]
[1718112630287,0.58245824,67188.0,67187.0,0.001946]
[1718112630482,0.67095406,67188.0,67187.0,0.000946]
[1718112630687,1.63845802,67188.0,67187.0,0.000946]
[1718112630891,1.82005802,67188.0,67187.0,0.001946]
[1718112631089,1.66729806,67188.0,67187.0,0.001946]
[1718112631314,1.84789806,67188.0,67187.0,0.001946]
[1718112631671,2.10449806,67188.0,67187.0,0.001946]
[1718112631903,2.10449806,67188.0,67180.0,0.000946]
[1718112631904,1.08165631,67181.0,67180.0,0.000946]
[1718112632102,1.64774187,67181.0,67180.0,0.000946]
[1718112632305,1.88487481,67181.0,67180.0,0.000946]
[1718112632642,1.50427481,67181.0,67180.0,0.000946]
[1718112632863,1.68487481,67181.0,67180.0,0.000946]
[1718112633263,1.88987481,67181.0,67180.0,0.001946]
[1718112633469,1.50927481,67181.0,67180.0,0.001946]
[1718112633677,1.68987481,67181.0,67180.0,0.001946]
[1718112633904,1.17400618,67181.0,67180.0,0.001946]
[1718112634109,0.15872224,67181.0,67180.0,0.002946]
[1718112634534,0.15372224,67181.0,67180.0,0.001946]
[1718112634954,0.14931993,67181.0,67180.0,0.001946]
[1718112635382,0.14431993,67181.0,67180.0,0.000946]
[1718112635579,0.14872224,67181.0,67180.0,0.000946]
[1718112635831,0.15372224,67181.0,67180.0,0.001946]
[1718112636036,0.005,67181.0,67180.0,0.001946]
[1718112636251,0.00440231,67182.0,67180.0,0.000946]
[1718112636462,0.00440231,67193.0,67182.0,0.07215996]
[1718112636664,0.00440231,67189.0,67183.0,0.2384]
[1718112636843,0.00440231,67185.0,67183.0,0.2384]
[1718112637071,0.00440231,67181.0,67180.0,0.000946]
[1718112637274,0.14872224,67181.0,67180.0,0.002946]
[1718112638650,0.14972224,67181.0,67180.0,0.002946]
[1718112638856,0.14972224,67181.0,67180.0,0.000946]
[1718112639953,0.14972224,67181.0,67180.0,0.002946]
[1718112640867,0.14531993,67181.0,67180.0,0.002946]
[1718112641021,0.001,67181.0,67180.0,0.151799]
[1718112642039,0.00392087,67190.0,67182.0,0.148849]
[1718112642402,0.14431993,67189.0,67182.0,0.148849]
[1718112643051,0.00392087,67186.0,67180.0,0.002946]
[1718112643289,0.14431993,67189.0,67180.0,0.000946]
[1718112643290,0.00392087,67187.0,67180.0,0.000946]
[1718112643493,0.14431993,67189.0,67182.0,0.002]
[1718112643654,0.14431993,67189.0,67185.0,0.311042]
[1718112644080,0.00392087,67193.0,67185.0,0.311042]
[1718112644285,0.14431993,67192.0,67185.0,0.1622]
[1718112644634,0.2294,67201.0,67185.0,0.40372113]
[1718112644635,0.001,67186.0,67185.0,0.40372113]
[1718112644845,0.00392087,67199.0,67188.0,0.311833]
[1718112645027,0.00392087,67194.0,67188.0,0.311833]
[1718112645195,0.005,67189.0,67188.0,0.163]
[1718112645831,0.005,67189.0,67185.0,0.001]
[1718112645832,0.00392087,67187.0,67185.0,0.001]
[1718112646030,0.1482408,67186.0,67185.0,0.001]
[1718112646435,0.1482408,67186.0,67181.0,0.02979]
[1718112646637,0.1482408,67186.0,67180.0,0.000946]
[1718112646638,0.15277187,67181.0,67180.0,0.000946]
[1718112646865,0.3170918,67181.0,67180.0,0.000946]
[1718112647487,0.41225176,67181.0,67180.0,0.000946]
[1718112647862,0.80332694,67181.0,67180.0,0.000946]
[1718112648119,0.80332694,67181.0,67180.0,0.002946]
[1718112648120,0.90332694,67181.0,67180.0,0.002946]
[1718112648334,0.90732694,67181.0,67180.0,0.003946]
[1718112648732,0.94600155,67181.0,67180.0,0.003946]
[1718112649049,1.97361947,67181.0,67180.0,0.003946]
[1718112649661,2.01805794,67181.0,67180.0,0.003946]
[1718112649780,1.96961947,67181.0,67180.0,0.002946]
[1718112649982,1.96961947,67181.0,67180.0,0.000946]
[1718112650186,1.97661947,67181.0,67180.0,0.001946]
[1718112650387,1.18768133,67181.0,67180.0,0.000946]
[1718112650596,1.32960672,67181.0,67180.0,0.000946]
[1718112650803,1.33260672,67181.0,67180.0,0.001946]
[1718112651013,1.15700672,67181.0,67180.0,0.002946]
[1718112651252,1.15200672,67181.0,67180.0,0.001946]
[1718112651460,1.26082911,67181.0,67180.0,0.002946]
[1718112651663,1.25482911,67181.0,67180.0,0.001946]
[1718112652098,1.25982911,67181.0,67180.0,0.002946]
[1718112652741,0.78219372,67181.0,67180.0,0.002946]
[1718112653423,0.77719372,67181.0,67180.0,0.001946]
[1718112653646,0.2999838,67181.0,67180.0,0.001946]
[1718112653884,0.1561328,67181.0,67180.0,0.245646]
[1718112654318,0.005,67181.0,67180.0,0.244646]
[1718112654566,0.02,67196.0,67180.0,0.243646]
[1718112654567,0.00181287,67186.0,67180.0,0.243646]
[1718112654771,0.005,67181.0,67180.0,0.244646]
[1718112654994,0.14431993,67185.0,67180.0,0.243646]
[1718112655221,0.004,67181.0,67180.0,0.243646]
[1718112656076,0.009,67181.0,67180.0,0.392499]
[1718112656276,0.009,67181.0,67180.0,0.41068613]
[1718112656487,0.00586,67181.0,67180.0,0.41068613]
[1718112656687,0.00586,67181.0,67180.0,0.392499]
[1718112656891,0.00586,67181.0,67180.0,0.41268613]
[1718112657304,0.00586,67181.0,67180.0,0.41068613]
[1718112657518,0.00086,67181.0,67180.0,0.41068613]
[1718112657708,0.00086,67181.0,67180.0,0.41268613]
[1718112657910,0.00086,67181.0,67180.0,0.41668613]
[1718112658125,0.00086,67181.0,67180.0,0.41268613]
[1718112658551,0.00086,67181.0,67180.0,0.41568613]
[1718112661069,0.00086,67181.0,67180.0,0.56847613]
[1718112662335,0.00086,67181.0,67180.0,0.56547613]
[1718112662551,0.00086,67181.0,67180.0,0.76547613]
[1718112662778,0.00086,67181.0,67180.0,0.76347613]
[1718112662986,0.00086,67181.0,67180.0,0.76947613]
[1718112663199,0.00086,67181.0,67180.0,0.77147613]
[1718112663401,0.00086,67181.0,67180.0,0.57147613]
[1718112663606,0.00086,67181.0,67180.0,0.56947613]
[1718112664167,0.00086,67181.0,67180.0,0.57147613]
[1718112664323,0.00086,67181.0,67180.0,0.56547613]
[1718112664526,0.00086,67181.0,67180.0,0.71784909]
[1718112664739,0.00086,67181.0,67180.0,0.91784909]
[1718112665479,0.00086,67181.0,67180.0,0.92384909]
[1718112665711,0.00086,67181.0,67180.0,0.91784909]
[1718112666106,0.00086,67181.0,67180.0,0.72584909]
[1718112666519,0.00086,67181.0,67180.0,0.72384909]
[1718112666962,0.00086,67181.0,67180.0,0.68466196]
[1718112667166,0.00086,67181.0,67180.0,0.16331896]
[1718112667367,0.00086,67181.0,67180.0,0.006946]
[1718112667368,0.1469928,67181.0,67180.0,0.006946]
[1718112667692,0.1469928,67181.0,67180.0,0.002946]
[1718112667902,0.1469928,67181.0,67180.0,0.008946]
[1718112668329,0.1469928,67181.0,67180.0,0.002946]
[1718112668540,0.1469928,67181.0,67180.0,0.006946]
[1718112668946,0.1469928,67181.0,67180.0,0.002946]
[1718112669355,0.1489928,67181.0,67180.0,0.000946]
[1718112669806,0.1489928,67181.0,67180.0,0.002946]
[1718112670219,0.1489928,67181.0,67180.0,0.000946]
[1718112670645,100.1489928,67181.0,67180.0,0.002946]
[1718112672177,100.1469928,67181.0,67180.0,0.002946]
[1718112672664,100.1489928,67181.0,67180.0,0.000946]
[1718112672888,100.1469928,67181.0,67180.0,0.002946]
[1718112673559,100.1469928,67181.0,67180.0,0.000946]
[1718112673683,100.1469928,67181.0,67180.0,0.002946]
[1718112674090,0.1469928,67181.0,67180.0,0.002946]
[1718112674292,0.1489928,67181.0,67180.0,0.002946]
[1718112674537,0.1489928,67181.0,67180.0,0.000946]
[1718112674852,0.1509928,67181.0,67180.0,0.000946]
[1718112675290,0.1469928,67181.0,67180.0,0.000946]
[1718112675714,0.1489928,67181.0,67180.0,0.000946]
[1718112675899,0.1489928,67181.0,67180.0,0.002946]
[1718112676527,0.1489928,67181.0,67180.0,0.000946]
[1718112676680,0.1489928,67181.0,67180.0,0.002946]
[1718112678391,0.2978438,67181.0,67180.0,0.002946]
[1718112678599,0.3178438,67181.0,67180.0,0.002946]
[1718112679021,0.71626818,67181.0,67180.0,0.002946]
[1718112679937,0.71626818,67181.0,67180.0,0.000946]
[1718112680154,0.6608438,67181.0,67180.0,0.000946]
[1718112680368,0.6628438,67181.0,67180.0,0.000946]
[1718112680784,0.6588438,67181.0,67180.0,0.000946]
[1718112681237,0.6638438,67181.0,67180.0,0.001946]
[1718112681687,0.7638438,67181.0,67180.0,0.001946]
[1718112681893,1.57451118,67181.0,67180.0,0.002946]
[1718112682344,1.93446378,67181.0,67180.0,0.002946]
[1718112682765,2.33086678,67181.0,67180.0,0.002946]
[1718112682978,2.33086678,67181.0,67175.0,0.009416]
[1718112682979,1.30499987,67176.0,67175.0,0.009416]
[1718112683190,2.73134235,67176.0,67175.0,0.009416]
[1718112683411,3.23722191,67176.0,67175.0,0.009416]
[1718112683626,3.27821318,67176.0,67175.0,0.009416]
[1718112683869,3.00605691,67176.0,67175.0,0.009416]
[1718112684486,1.29829714,67175.0,67174.0,0.009416]
[1718112684703,0.93229987,67165.0,67164.0,0.009416]
[1718112684942,0.93229987,67165.0,67129.0,0.01818713]
[1718112684943,0.00181287,67128.0,67126.0,0.43295979]
[1718112685168,0.1461328,67127.0,67126.0,0.43295979]
[1718112685447,0.1461328,67127.0,67119.0,0.009416]
[1718112685448,0.10181287,67125.0,67119.0,0.009416]
[1718112685675,1.34708787,67125.0,67119.0,0.009416]
[1718112685978,0.72739887,67120.0,67119.0,0.009416]
[1718112686193,1.54340287,67120.0,67119.0,0.009416]
[1718112686411,1.00741487,67113.0,67100.0,0.1]
[1718112686639,1.5743348,67113.0,67100.0,0.1]
[1718112686859,1.35749751,67113.0,67100.0,0.1]
[1718112687072,1.45677968,67113.0,67100.0,0.1]
[1718112687324,1.27587968,67113.0,67100.0,0.1]
[1718112687786,0.7678328,67113.0,67100.0,0.1]
[1718112688052,0.7678328,67113.0,67107.0,0.009416]
[1718112688053,0.4461328,67113.0,67107.0,0.009416]
[1718112688310,0.1461328,67113.0,67107.0,0.009416]
[1718112688782,0.14431993,67113.0,67107.0,0.009416]
[1718112689000,0.14431993,67113.0,67108.0,0.01]
[1718112689001,0.014,67113.0,67108.0,0.01]
[1718112689234,0.005,67113.0,67112.0,0.29090313]
[1718112689462,0.1549,67138.0,67112.0,0.29090313]
[1718112689463,0.00181287,67138.0,67117.0,0.148992]
[1718112689686,0.00181287,67130.0,67117.0,0.148992]
[1718112689904,0.00181287,67132.0,67117.0,0.148992]
[1718112690120,0.00181287,67140.0,67118.0,0.09034709]
[1718112690338,0.43295979,67144.0,67118.0,0.45744709]
[1718112690566,0.43295979,67144.0,67118.0,0.68723709]
[1718112690789,0.43295979,67144.0,67118.0,0.48723709]
[1718112691001,0.43295979,67144.0,67118.0,0.68723709]
[1718112691215,0.3784,67157.0,67118.0,0.68723709]
[1718112691216,0.00181287,67150.0,67138.0,0.01818713]
[1718112691438,0.58185479,67162.0,67143.0,0.01818713]
[1718112691439,0.43295979,67145.0,67143.0,0.01818713]
[1718112691688,0.43295979,67145.0,67139.0,0.023]
[1718112691689,0.00181287,67156.0,67144.0,0.01818713]
[1718112691922,0.14431993,67155.0,67144.0,0.01818713]
[1718112692449,0.00181287,67154.0,67145.0,0.14893]
[1718112692668,0.1461328,67153.0,67145.0,0.14893]
[1718112692891,0.00181287,67151.0,67145.0,0.14893]
[1718112693164,0.1461328,67153.0,67145.0,0.14893]
[1718112693394,0.14431993,67153.0,67146.0,0.148928]
[1718112693624,0.00181287,67162.0,67146.0,0.01818713]
[1718112693847,0.14431993,67161.0,67146.0,0.01818713]
[1718112694074,0.14431993,67161.0,67148.0,0.16711113]
[1718112694075,0.1461328,67161.0,67148.0,0.16711113]
[1718112694297,0.001,67156.0,67149.0,0.01818713]
[1718112694523,0.00181287,67162.0,67148.0,0.16711113]
[1718112694524,0.14431993,67155.0,67148.0,0.16711113]
[1718112694797,0.00181287,67154.0,67148.0,0.148924]
[1718112695023,0.001,67153.0,67148.0,0.148924]
[1718112695249,0.001,67153.0,67142.0,0.148937]
[1718112695250,0.00181287,67146.0,67142.0,0.148937]
[1718112695474,0.15176612,67153.0,67136.0,0.14895]
[1718112695475,0.00181287,67143.0,67136.0,0.14895]
[1718112695711,0.14431993,67145.0,67134.0,0.01818713]
[1718112695917,0.14431993,67145.0,67129.0,0.1]
[1718112695918,0.14431993,67145.0,67138.0,0.01818713]
[1718112696347,0.14431993,67145.0,67136.0,0.01818713]
[1718112696763,0.14431993,67145.0,67142.0,0.002]
[1718112697243,0.00181287,67137.0,67132.0,0.148958]
[1718112697473,0.00181287,67133.0,67128.0,0.1569]
[1718112697891,0.00181287,67130.0,67126.0,0.08]
[1718112698098,0.00181287,67129.0,67126.0,0.08]
[1718112698312,0.14431993,67132.0,67124.0,0.148977]
[1718112698527,0.14431993,67132.0,67127.0,0.14897]
[1718112698771,0.14431993,67132.0,67128.0,0.148968]
[1718112699626,0.14431993,67132.0,67128.0,0.155968]
[1718112700040,0.00181287,67129.0,67128.0,0.009]
[1718112700257,0.1461328,67129.0,67128.0,0.009]
[1718112700933,0.1461328,67129.0,67128.0,0.007]
[1718112700934,0.56609869,67129.0,67128.0,0.007]
[1718112701154,0.56609869,67129.0,67112.0,0.009416]
[1718112701155,0.00181276,67113.0,67112.0,0.009416]
[1718112701390,0.14613269,67113.0,67112.0,0.009416]
[1718112703728,0.14613269,67113.0,67112.0,0.011416]
[1718112704180,0.00181276,67121.0,67112.0,0.009416]
[1718112704411,0.14431993,67120.0,67112.0,0.009416]
[1718112704873,0.00181276,67119.0,67112.0,0.009416]
[1718112705092,0.14431993,67118.0,67112.0,0.009416]
[1718112705328,0.005,67113.0,67112.0,0.010416]
[1718112705540,0.14431993,67118.0,67112.0,0.009416]
[1718112705776,0.00181276,67114.0,67112.0,0.011416]
[1718112705980,0.14431993,67118.0,67112.0,0.011416]
[1718112705981,0.14613269,67118.0,67112.0,0.014416]
[1718112706190,0.14431993,67118.0,67112.0,0.011416]
[1718112706399,0.14431993,67118.0,67112.0,0.009416]
[1718112706896,0.14431993,67118.0,67112.0,0.011416]
[1718112707368,0.14431993,67118.0,67112.0,0.009416]
[1718112707590,0.14613269,67118.0,67112.0,0.011416]
[1718112708032,0.00181276,67116.0,67112.0,0.011416]
[1718112708308,0.14431993,67116.0,67112.0,0.014416]
[1718112708760,0.14431993,67116.0,67112.0,0.011416]
[1718112708985,0.14431993,67116.0,67112.0,0.012416]
[1718112709515,0.14431993,67116.0,67112.0,0.011416]
[1718112709715,0.14431993,67116.0,67112.0,0.014416]
[1718112710370,0.14613269,67116.0,67112.0,0.014416]
[1718112710757,0.00181276,67113.0,67112.0,0.014416]
[1718112710974,0.00181276,67114.0,67112.0,0.014416]
[1718112711366,0.14613269,67113.0,67112.0,0.014416]
[1718112711982,0.14431993,67113.0,67112.0,0.009416]
[1718112712368,0.14431993,67113.0,67112.0,0.014416]
[1718112712766,0.14431993,67113.0,67112.0,0.012416]
[1718112713357,0.00181276,67119.0,67114.0,0.148999]
[1718112713596,0.1,67131.0,67114.0,0.148999]
[1718112713597,0.00181276,67120.0,67114.0,0.148999]
[1718112713818,0.00181276,67120.0,67112.0,0.009416]
[1718112714036,0.00181276,67117.0,67112.0,0.011416]
[1718112714234,0.14431993,67117.0,67112.0,0.011416]
[1718112714798,0.004,67113.0,67112.0,0.011416]
[1718112715267,0.14431993,67117.0,67112.0,0.011416]
[1718112715470,0.14431993,67117.0,67112.0,0.012416]
[1718112715894,0.14431993,67117.0,67114.0,0.002]
[1718112716458,0.14431993,67117.0,67112.0,0.15842]
[1718112716662,0.14431993,67117.0,67112.0,0.16042]
[1718112716861,0.14431993,67117.0,67112.0,0.16342]
[1718112717268,0.14431993,67117.0,67112.0,0.012416]
[1718112717542,0.00181276,67114.0,67112.0,0.012416]
[1718112717736,0.14613269,67113.0,67112.0,0.012416]
[1718112718260,0.14431993,67113.0,67112.0,0.009416]
[1718112718703,0.14613269,67113.0,67112.0,0.009416]
[1718112718911,0.14431993,67113.0,67112.0,0.009416]
[1718112719337,0.14831993,67113.0,67112.0,0.011416]
[1718112719550,0.14431993,67113.0,67112.0,0.011416]
[1718112719969,0.14831993,67113.0,67112.0,0.009416]
[1718112720499,0.15013269,67113.0,67112.0,0.009416]
[1718112720718,0.53264596,67113.0,67112.0,0.009416]
[1718112720938,0.94684039,67113.0,67112.0,0.011416]
[1718112721156,0.67447305,67113.0,67112.0,0.011416]
[1718112721378,0.14613269,67113.0,67112.0,0.011416]
[1718112721596,0.29513469,67113.0,67112.0,0.011416]
[1718112721816,0.29813469,67113.0,67112.0,0.011416]
[1718112722029,0.29332193,67113.0,67112.0,0.011416]
[1718112722250,0.14431993,67113.0,67112.0,0.009416]
[1718112722469,0.15831993,67113.0,67112.0,0.010416]
[1718112722683,0.15831993,67113.0,67112.0,0.012416]
[1718112722903,0.15831993,67113.0,67112.0,0.011416]
[1718112722904,0.14431993,67113.0,67112.0,0.011416]
[1718112723121,0.00181276,67122.0,67112.0,0.009416]
[1718112723347,0.005,67113.0,67112.0,0.010416]
[1718112723560,0.005,67113.0,67112.0,0.012416]
[1718112723999,0.005,67113.0,67112.0,0.010416]
[1718112724500,0.14431993,67117.0,67112.0,0.009416]
[1718112724723,0.14898,67123.0,67112.0,0.009416]
[1718112724929,0.14431993,67122.0,67114.0,0.01818724]
[1718112725371,0.14431993,67122.0,67114.0,0.148999]
[1718112725633,0.00181276,67118.0,67112.0,0.009416]
[1718112725848,0.14613269,67118.0,67112.0,0.011416]
[1718112726066,0.001,67117.0,67112.0,0.011416]
[1718112726278,0.14431993,67118.0,67112.0,0.009416]
[1718112726694,0.14431993,67118.0,67114.0,0.002]
[1718112727125,0.14431993,67118.0,67112.0,0.009416]
[1718112727346,0.14431993,67118.0,67112.0,0.011416]
[1718112727557,0.14613269,67118.0,67112.0,0.011416]
[1718112727791,0.148978,67124.0,67112.0,0.011416]
[1718112727792,0.00181276,67113.0,67112.0,0.011416]
[1718112728004,0.00181276,67115.0,67112.0,0.011416]
[1718112728235,0.00181276,67114.0,67112.0,0.011416]
[1718112728439,0.07215996,67124.0,67112.0,0.015416]
[1718112728440,0.14613269,67113.0,67112.0,0.015416]
[1718112728696,0.14613269,67113.0,67112.0,0.011416]
[1718112729201,0.14613269,67113.0,67112.0,0.013416]
[1718112729444,0.07215996,67124.0,67112.0,0.013416]
[1718112729445,0.148981,67123.0,67114.0,0.002]
[1718112729612,0.14431993,67122.0,67114.0,0.002]
[1718112730252,0.14613269,67122.0,67114.0,0.002]
[1718112730465,0.14613269,67122.0,67112.0,0.011416]
[1718112730675,0.14431993,67122.0,67114.0,0.01818724]
[1718112730896,0.14431993,67122.0,67118.0,0.01818724]
[1718112731127,0.000946,67129.0,67125.0,0.01818724]
[1718112731338,0.000946,67129.0,67124.0,0.229375]
[1718112732188,0.000946,67129.0,67124.0,0.24756224]
[1718112732828,0.000946,67129.0,67125.0,0.01818724]
[1718112733026,0.000946,67129.0,67124.0,0.229375]
[1718112733027,0.000946,67129.0,67124.0,0.24756224]
[1718112733288,0.000946,67129.0,67124.0,0.231375]
[1718112733921,0.000946,67129.0,67124.0,0.229375]
[1718112734101,0.000946,67129.0,67125.0,0.002]
[1718112734844,0.00775876,67129.0,67125.0,0.002]
[1718112735128,0.005946,67129.0,67125.0,0.02018724]
[1718112735464,0.005946,67129.0,67126.0,0.01818724]
[1718112735601,0.005946,67129.0,67124.0,0.229375]
[1718112735804,0.14431993,67128.0,67124.0,0.002]
[1718112736006,0.14613269,67128.0,67124.0,0.002]
[1718112736332,0.00181276,67125.0,67119.0,0.1652]
[1718112736670,0.14431993,67125.0,67119.0,0.1652]
[1718112736851,0.14431993,67125.0,67121.0,0.148982]
[1718112737709,0.14431993,67125.0,67122.0,0.01818724]
[1718112737930,0.14431993,67125.0,67121.0,0.16716924]
[1718112738136,0.000946,67129.0,67124.0,0.148977]
[1718112738337,0.14526593,67129.0,67124.0,0.148977]
[1718112738913,0.000946,67129.0,67126.0,0.01818724]
[1718112739406,0.000946,67129.0,67127.0,0.01818724]
[1718112739619,0.000946,67129.0,67128.0,0.41225624]
[1718112739823,0.000946,67129.0,67128.0,1.62206778]
[1718112740026,0.1641,67160.0,67147.0,0.2451]
[1718112740232,0.00181276,67155.0,67147.0,0.2451]
[1718112740434,0.00181276,67153.0,67142.0,0.18168724]
[1718112740641,0.1641,67160.0,67142.0,0.1635]
[1718112740642,0.14613269,67152.0,67142.0,0.1635]
[1718112740901,0.00181276,67148.0,67141.0,0.0816]
[1718112741071,0.00181276,67141.0,67134.0,0.1556]
[1718112741283,0.14431993,67141.0,67130.0,0.01818724]
[1718112741490,0.14431993,67141.0,67130.0,0.10118724]
[1718112741700,0.14613269,67141.0,67136.0,0.148951]
[1718112741897,0.1642,67150.0,67130.0,0.083]
[1718112741898,0.00181276,67136.0,67130.0,0.083]
[1718112742123,0.1642,67150.0,67129.0,0.1556]
[1718112742124,0.14613269,67135.0,67129.0,0.1556]
[1718112742307,0.00181276,67133.0,67129.0,0.1556]
[1718112742461,0.14431993,67135.0,67129.0,0.1556]
[1718112742889,0.14613269,67135.0,67129.0,0.1556]
[1718112743093,0.00181276,67133.0,67129.0,0.1556]
[1718112743506,0.14431993,67135.0,67129.0,0.1556]
[1718112743715,0.14431993,67135.0,67130.0,0.004]
[1718112743716,0.14613269,67135.0,67130.0,0.004]
[1718112743920,0.14613269,67135.0,67129.0,0.1556]
[1718112743921,0.14431993,67135.0,67129.0,0.1556]
[1718112744122,0.14431993,67135.0,67129.0,0.1576]
[1718112744347,0.001,67133.0,67129.0,0.1616]
[1718112744602,0.001,67133.0,67132.0,0.14896]
[1718112744800,0.148913,67153.0,67130.0,0.04118724]
[1718112744801,0.00181276,67144.0,67135.0,0.148953]
[1718112745007,0.14431993,67143.0,67136.0,0.14895]
[1718112746118,0.1508,67160.0,67145.0,0.01818724]
[1718112746324,0.1508,67160.0,67142.0,0.1617]
[1718112746325,0.14613269,67159.0,67147.0,0.148925]
[1718112746533,0.14431993,67159.0,67153.0,0.148913]
[1718112746665,0.00181276,67169.0,67155.0,0.01818724]
[1718112746878,0.1508,67178.0,67163.0,0.01818724]
[1718112747081,0.000946,67180.0,67168.0,0.31058]
[1718112747295,0.14431993,67179.0,67169.0,0.148876]
[1718112747901,0.14431993,67179.0,67170.0,0.15367826]
[1718112748177,0.000946,67180.0,67170.0,0.15367826]
[1718112748178,0.014,67178.0,67173.0,0.01818724]
[1718112748392,0.014,67178.0,67177.0,0.14886]
[1718112748631,0.000946,67180.0,67171.0,0.148872]
[1718112748632,0.00181276,67177.0,67171.0,0.148872]
[1718112748850,0.000946,67180.0,67169.0,0.01818724]
[1718112749022,0.000946,67180.0,67170.0,0.023]
[1718112749461,0.00275876,67180.0,67170.0,0.04118724]
[1718112749644,0.00275876,67180.0,67170.0,0.023]
[1718112749793,0.000946,67180.0,67170.0,0.023]
[1718112749995,0.001,67179.0,67170.0,0.023]
[1718112750214,0.000946,67180.0,67173.0,0.148868]
[1718112750449,0.00181276,67177.0,67170.0,0.002]
[1718112750666,0.00181276,67176.0,67170.0,0.008]
[1718112751173,0.00181276,67177.0,67170.0,0.006]
[1718112751386,0.00181276,67177.0,67170.0,0.008]
[1718112751584,0.00181276,67177.0,67170.0,0.002]
[1718112752020,0.00181276,67177.0,67170.0,0.008]
[1718112752449,0.14613269,67177.0,67170.0,0.008]
[1718112752668,0.00181276,67171.0,67170.0,0.006]
[1718112752882,0.14613269,67171.0,67170.0,0.006]
[1718112753118,0.14613269,67171.0,67170.0,0.008]
[1718112753336,0.29500569,67171.0,67170.0,0.002]
[1718112753569,0.1641,67177.0,67170.0,0.002]
[1718112753570,0.00181276,67179.0,67170.0,0.2365]
[1718112753766,0.00181276,67178.0,67170.0,0.2415]
[1718112753974,0.00181276,67178.0,67170.0,0.2385]
[1718112754184,0.00181276,67176.0,67170.0,0.002]
[1718112754400,0.008,67171.0,67170.0,0.003]
[1718112754591,0.14431993,67175.0,67164.0,0.300189]
[1718112755023,0.14431993,67175.0,67170.0,0.003]
[1718112756254,0.0781,67174.0,67170.0,0.005]
[1718112756461,0.0781,67174.0,67168.0,0.148878]
[1718112756462,0.14431993,67174.0,67168.0,0.148878]
[1718112756924,0.14431993,67174.0,67170.0,0.005]
[1718112757117,0.14431993,67174.0,67170.0,0.002]
[1718112757331,0.14431993,67174.0,67169.0,0.01818724]
[1718112757541,0.14431993,67174.0,67170.0,0.003]
[1718112757768,0.000946,67180.0,67173.0,0.01818724]
[1718112757971,0.000946,67180.0,67177.0,0.01818724]
[1718112758201,0.000946,67180.0,67176.0,0.16704824]
[1718112758424,0.000946,67180.0,67168.0,0.008]
[1718112758425,0.60465176,67170.0,67169.0,0.148878]
[1718112758693,0.60465176,67170.0,67169.0,0.271878]
[1718112759336,0.60465176,67170.0,67169.0,0.273878]
[1718112759984,0.60465176,67170.0,67169.0,0.271878]
[1718112760197,0.60465176,67170.0,67169.0,0.276878]
[1718112760408,0.60465176,67170.0,67169.0,0.278878]
[1718112760617,0.60465176,67170.0,67169.0,0.273878]
[1718112761029,0.60465176,67170.0,67169.0,0.278878]
[1718112761248,0.60465176,67170.0,67169.0,0.724778]
[1718112761465,0.60465176,67170.0,67169.0,0.90304673]
[1718112761681,0.60459132,67170.0,67169.0,1.40595635]
[1718112761887,0.60459132,67170.0,67169.0,1.44012266]
[1718112762320,0.60459132,67170.0,67169.0,1.43812266]
[1718112762793,0.60459132,67170.0,67169.0,1.39895635]
[1718112763435,0.001,67170.0,67169.0,1.44712266]
[1718112763642,0.001,67170.0,67169.0,1.40795635]
[1718112763895,0.001,67170.0,67169.0,1.44712266]
[1718112764313,0.001,67170.0,67169.0,1.40795635]
[1718112764518,0.001,67170.0,67169.0,1.44689539]
[1718112764718,0.001,67170.0,67169.0,1.40795635]
[1718112765100,0.001,67170.0,67169.0,1.20795635]
[1718112765260,0.001,67170.0,67169.0,1.40795635]
[1718112765462,0.001,67170.0,67169.0,1.10795635]
[1718112766525,0.001,67170.0,67169.0,0.503778]
[1718112768107,0.001,67170.0,67169.0,0.64537707]
[1718112768527,0.001,67170.0,67169.0,0.66837707]
[1718112768978,0.001,67170.0,67169.0,0.39947707]
[1718112769154,0.001,67170.0,67169.0,0.39939555]
[1718112769364,0.001,67170.0,67169.0,0.257878]